fUSD/lending_fUSD_20240423
["ID","MTS","AMOUNT","RATE_DAILY","PERIOD"]
[323321605,1713891048458,-150.0,0.00011949,2]
[323321606,1713891048467,-150.0,0.00011949,2]
[323321607,1713891048477,-150.0,0.00011951,2]
[323321608,1713891048486,-150.0,0.00011951,2]
[323321609,1713891048497,-150.0,0.00011953,2]
[323321610,1713891048507,-150.0,0.00011954,2]
[323321611,1713891048516,-150.0,0.00011955,2]
[323321612,1713891048527,-150.0,0.00011963,2]
[323321613,1713891048537,-150.0,0.00011965,2]
[323321614,1713891048547,-150.0,0.00011972,2]
[323321615,1713891048556,-32.29379989,0.00011974,2]
[323321616,1713891048621,-671.54,0.00011445,2]
[323321617,1713891048630,-117.70620011,0.00011974,2]
[323321618,1713891048640,-150.0,0.00011974,2]
[323321619,1713891048649,-150.0,0.0001198,2]
[323321620,1713891048659,-150.0,0.0001198,2]
[323321621,1713891048669,-150.0,0.0001198,2]
[323321622,1713891048678,-150.0,0.00011983,2]
[323321623,1713891048687,-150.0,0.00011985,2]
[323321624,1713891048697,-253.65694874,0.00011986,2]
[323321625,1713891048706,-58.59685115,0.0001199,2]
[323321626,1713891048717,-91.40314885,0.0001199,2]
[323321627,1713891048727,-222.19053251,0.00011991,2]
[323321628,1713891048753,-277.80946749,0.00011991,2]
[323321629,1713891048763,-500.0,0.00011991,2]
[323321630,1713891048773,-500.0,0.00011991,2]
[323321631,1713891048783,-500.0,0.00011991,2]
[323321632,1713891048792,-659.62,0.00011993,2]
[323321633,1713891048801,-500.0,0.00011993,2]
[323321634,1713891048811,-500.0,0.00011993,2]
[323321635,1713891048820,-203.72917477,0.00011993,2]
[323321636,1713891048830,-500.0,0.00011993,2]
[323321637,1713891048840,-500.0,0.00011993,2]
[323321638,1713891048849,-500.0,0.00011993,2]
[323321639,1713891048858,-500.0,0.00011993,2]
[323321640,1713891048868,-358.84135774,0.00011993,2]
[323321641,1713891048879,-141.15864226,0.00011993,2]
[323321642,1713891048888,-500.0,0.00011993,2]
[323321643,1713891048898,-33.27135777,0.00011993,2]
[323321644,1713891048909,-266.8651973,0.00011993,2]
[323321645,1713891048921,-199.86344493,0.00011993,2]
[323321646,1713891048930,-500.0,0.00011993,2]
[323321647,1713891048940,-358.20139702,0.00011993,2]
[323321648,1713891048974,-184.45860298,0.00011993,2]
[323321649,1713891048984,-500.0,0.00011993,2]
[323321650,1713891048993,-220.99539702,0.00011993,2]
[323321651,1713891064844,-2796.90777509,0.00011168,2]
[323321652,1713891065098,-500.0,0.00011169,2]
[323321653,1713891065123,-500.0,0.00011169,2]
[323321654,1713891065147,-203.09222491,0.00011169,2]
[323321655,1713891066524,-346.59777509,0.00011169,2]
[323321656,1713891066546,-500.0,0.00011171,2]
[323321657,1713891066569,-500.0,0.00011171,2]
[323321658,1713891066593,-500.0,0.00011171,2]
[323321659,1713891066617,-500.0,0.00011171,2]
[323321660,1713891072459,500.0,0.00011169,2]
[323321661,1713891072805,1153.40222491,0.00011171,2]
[323321662,1713891072825,111.29777509,0.00011171,2]
[323321663,1713891074309,3888.70222491,0.00011171,2]
[323321664,1713891076960,-500.0,0.00011169,2]
[323321665,1713891076982,-3500.0,0.00011171,2]
[323321666,1713891077345,-3519.99777509,0.00011171,2]
[323321667,1713891078175,480.00222491,0.00011171,2]
[323321668,1713891078758,23900.0,0.00010986,2]
[323321669,1713891081914,9099.94321408,9e-05,2]
[323321670,1713891090165,749.48014976,0.00011,2]
[323321671,1713891094837,156.19509503,0.00010791,2]
[323321672,1713891100453,8000.0,0.00011,2]
[323321673,1713891101656,214.28,0.00011025,2]
[323321674,1713891104529,545.91901904,8.937e-05,2]
[323321675,1713891107774,248.75,0.00010749,2]
[323321676,1713891107996,-214.28,0.00011056,2]
[323321677,1713891108018,-214.28,0.00011086,2]
[323321678,1713891108040,-214.28,0.00011116,2]
[323321679,1713891108063,-214.28,0.00011146,2]
[323321680,1713891108084,-164.51530542,0.00011167,2]
[323321681,1713891108104,-2978.36469458,0.00011167,2]
[323321682,1713891108523,-1344.49440147,0.00011167,2]
[323321683,1713891108543,-2355.5229007,0.00011168,2]
[323321684,1713891108565,-299.98269783,0.00011168,2]
[323321685,1713891109128,-59.41496326,0.00011168,2]
[323321686,1713891109149,-500.0,0.00011169,2]
[323321687,1713891109170,-500.0,0.00011169,2]
[323321688,1713891109191,-500.0,0.00011169,2]
[323321689,1713891109212,-500.0,0.00011169,2]
[323321690,1713891109232,-500.0,0.00011169,2]
[323321691,1713891109253,-19.99777509,0.00011171,2]
[323321692,1713891109273,-500.0,0.00011171,2]
[323321693,1713891109294,-320.0216552,0.00011171,2]
[323321694,1713891109314,-600.56560645,0.00011171,2]
[323321695,1713891109720,155.0,0.00010791,2]
[323321696,1713891109781,-2360.06922033,0.00011115,2]
[323321697,1713891109803,-442.99439355,0.00011171,2]
[323321698,1713891109824,-500.0,0.00011171,2]
[323321699,1713891109844,-155.1346824,0.00011171,2]
[323321700,1713891109865,-155.0,0.00011171,2]
[323321701,1713891109887,-386.80170372,0.00011171,2]
[323321702,1713891110900,-113.19829628,0.00011171,2]
[323321703,1713891110921,-352.49156069,0.00011171,2]
[323321704,1713891110942,-408.53284942,0.00011171,2]
[323321705,1713891110964,-515.1,0.00011171,2]
[323321706,1713891110986,-197.92437877,0.00011171,2]
[323321707,1713891111007,-173.06930294,0.00011171,2]
[323321708,1713891111029,-995.17,0.00011171,2]
[323321709,1713891111051,-288.42932357,0.00011171,2]
[323321710,1713891111072,-155.0,0.00011171,2]
[323321711,1713891111095,-500.0,0.00011171,2]
[323321712,1713891111116,-159.17219393,0.00011171,2]
[323321713,1713891111139,-141.9120944,0.00011171,2]
[323321714,1713891112120,703.28473577,0.00011,2]
[323321715,1713891118746,30827.22270808,6.94e-05,2]
[323321716,1713891126494,540.80995122,8.937e-05,2]
[323321717,1713891130583,-155.0,0.00011168,2]
[323321718,1713891130604,-500.0,0.00011169,2]
[323321719,1713891130625,-1064.8679056,0.00011171,2]
[323321720,1713891130644,-361.27483711,0.00011171,2]
[323321721,1713891130665,-212.81351382,0.00011171,2]
[323321722,1713891130685,-500.0,0.00011171,2]
[323321723,1713891130705,-298.7856299,0.00011171,2]
[323321724,1713891130727,-590.8,0.00011171,2]
[323321725,1713891130747,-500.0,0.00011171,2]
[323321726,1713891130771,-511.27,0.00011171,2]
[323321727,1713891130791,-500.0,0.00011171,2]
[323321728,1713891130811,-500.0,0.00011171,2]
[323321729,1713891130830,-500.0,0.00011171,2]
[323321730,1713891130851,-500.0,0.00011171,2]
[323321731,1713891130871,-500.0,0.00011171,2]
[323321732,1713891130892,-589.1,0.00011171,2]
[323321733,1713891130911,-155.0,0.00011171,2]
[323321734,1713891130931,-173.06930294,0.00011171,2]
[323321735,1713891130953,-751.76,0.00011171,2]
[323321736,1713891130973,-179.66447995,0.00011171,2]
[323321737,1713891130993,-500.0,0.00011171,2]
[323321738,1713891131015,-500.0,0.00011171,2]
[323321739,1713891131035,-182.12455701,0.00011171,2]
[323321740,1713891131056,-408.53284942,0.00011171,2]
[323321741,1713891131076,-500.0,0.00011171,2]
[323321742,1713891131098,-214.28,0.00011177,2]
[323321743,1713891131118,-500.0,0.00011182,2]
[323321744,1713891131138,-500.0,0.00011182,2]
[323321745,1713891131158,-658.75,0.00011182,2]
[323321746,1713891131179,-500.0,0.00011182,2]
[323321747,1713891131202,-500.0,0.00011182,2]
[323321748,1713891131222,-500.0,0.00011182,2]
[323321749,1713891131242,-500.0,0.00011182,2]
[323321750,1713891131263,-214.28,0.00011207,2]
[323321751,1713891131285,-214.28,0.00011237,2]
[323321752,1713891131306,-214.28,0.00011267,2]
[323321753,1713891131327,-214.28,0.00011298,2]
[323321754,1713891131349,-214.28,0.00011328,2]
[323321755,1713891131369,-214.28,0.00011358,2]
[323321756,1713891131390,-214.28,0.00011388,2]
[323321757,1713891131410,-1073.16430795,0.00011391,2]
[323321758,1713891131431,-214.28,0.00011419,2]
[323321759,1713891131454,-2205.5026163,0.00011442,2]
[323321760,1713891143495,179.66447995,0.0001,2]
[323321761,1713891144362,345.13055603,0.0001,2]
[323321762,1713891145908,482.26820332,8.937e-05,2]
[323321763,1713891147761,172.53633729,0.0001,2]
[323321764,1713891149032,155.0,8.937e-05,2]
[323321765,1713891150567,173.81871935,8.937e-05,2]
[323321766,1713891162404,288.91736774,8.937e-05,2]
[323321767,1713891162600,344.30138098,8.937e-05,2]
[323321768,1713891163679,179.66447995,0.0001,2]
[323321769,1713891163912,360.90670085,8.937e-05,2]
[323321770,1713891165685,320.0216552,8.937e-05,2]
[323321771,1713891165747,408.9904662,0.0001,2]
[323321772,1713891166490,545.91901904,7.15e-05,2]
[323321773,1713891169714,157.10515557,0.00010788,2]
[323321774,1713891170568,239.10155478,8.937e-05,2]
[323321775,1713891171080,365.80749897,8.937e-05,2]
[323321776,1713891173037,271.16854836,8.937e-05,2]
[323321777,1713891177261,866.38239461,8.937e-05,2]
[323321778,1713891178007,1050.0,8.937e-05,2]
[323321779,1713891180128,749.48014976,0.00011,2]
[323321780,1713891180503,196.55519433,7.15e-05,2]
[323321781,1713891187613,275.19105531,0.0001,2]
[323321782,1713891189701,320.0216552,8.937e-05,2]
[323321783,1713891191072,470.68625612,8.937e-05,2]
[323321784,1713891197534,208.68480832,8.937e-05,2]
[323321785,1713891197562,657.69758629,8.937e-05,2]
[323321786,1713891198133,749.48014976,0.00011,2]
[323321787,1713891198252,713.28,0.00010627,2]
[323321788,1713891211697,319.83450665,7.15e-05,2]
[323321789,1713891218548,423.55999838,0.00011007,2]
[323321790,1713891219258,866.38239461,7.15e-05,2]
[323321791,1713891220132,179.7413426,0.00011,2]
[323321792,1713891228176,-388.175957,0.00011051,2]
[323321793,1713891228197,-376.85428405,0.00011106,2]
[323321794,1713891228218,-167.36827021,0.00011107,2]
[323321795,1713891228241,-408.45355212,0.00011107,2]
[323321796,1713891228262,-343.3536616,0.00011108,2]
[323321797,1713891228521,-1294.06229619,0.00011108,2]
[323321798,1713891233253,974.86911059,7.15e-05,2]
[323321799,1713891242916,46.86286824,0.0001,2]
[323321800,1713891242938,4000.0,0.0001,2]
[323321801,1713891242961,4000.0,0.0001,2]
[323321802,1713891242981,4000.0,0.0001,2]
[323321803,1713891243003,3250.40494618,0.0001,2]
[323321804,1713891246716,410.38829253,0.0001087,2]
[323321805,1713891258633,339.20676129,0.00011108,2]
[323321806,1713891260516,182.8,8.592e-05,2]
[323321807,1713891281828,5913.99,0.0001074,2]
[323321808,1713891282480,208.75851243,0.0001,2]
[323321809,1713891319128,500.0,0.00010589,2]
[323321810,1713891319617,500.0,0.00010589,2]
[323321811,1713891320082,500.0,0.00010589,2]
[323321812,1713891320856,502.0,0.00010589,2]
[323321813,1713891322256,525.0,0.00010589,2]
[323321814,1713891325684,320.0216552,0.0001,2]
[323321815,1713891329267,866.38239461,0.0001,2]
[323321816,1713891335906,815.0,0.00010589,2]
[323321817,1713891338931,306.0,0.00010589,2]
[323321818,1713891340109,6188.94,0.00010545,2]
[323321819,1713891345662,317.59968445,0.0001,2]
[323321820,1713891347263,866.38239461,0.0001,2]
[323321821,1713891360358,875.96,0.00010545,2]
[323321822,1713891360571,875.96,0.00010547,2]
[323321823,1713891360822,875.96,0.0001055,2]
[323321824,1713891361046,875.96,0.00010553,2]
[323321825,1713891361275,866.38239461,0.0001,2]
[323321826,1713891361308,875.96,0.00010556,2]
[323321827,1713891361528,875.96,0.00010558,2]
[323321828,1713891361769,875.96,0.00010561,2]
[323321829,1713891362004,875.96,0.00010564,2]
[323321830,1713891362395,875.96,0.00010567,2]
[323321831,1713891362674,875.96,0.0001057,2]
[323321832,1713891363233,875.96,0.00010572,2]
[323321833,1713891363675,875.96,0.00010575,2]
[323321834,1713891363862,875.96,0.00010578,2]
[323321835,1713891364319,875.96,0.00010581,2]
[323321836,1713891364543,875.96,0.00010583,2]
[323321837,1713891364774,875.96,0.00010586,2]
[323321838,1713891364991,875.96,0.00010589,2]
[323321839,1713891365224,875.96,0.00010592,2]
[323321840,1713891365446,875.96,0.00010594,2]
[323321841,1713891365660,875.96,0.00010597,2]
[323321842,1713891367519,305.33150416,0.00010566,2]
[323321843,1713891379275,866.38239461,0.0001,2]
[323321844,1713891387781,6179.06449145,0.00010945,2]
[323321845,1713891395799,563.50995211,0.0001,2]
[323321846,1713891404999,154.6,8.39e-05,2]
[323321847,1713891405374,154.6,9.438e-05,2]
[323321848,1713891405739,154.6,0.00010487,2]
[323321849,1713891435691,604.83,0.00010489,2]
[323321850,1713891440518,1147.178791,0.00010985,2]
[323321851,1713891449008,581.9248,0.00011003,2]
[323321852,1713891450353,200.0,0.00010509,2]
[323321853,1713891451388,250.0,0.00010509,2]
[323321854,1713891467563,256.0,0.00010509,2]
[323321855,1713891501839,1206.97,0.00010461,2]
[323321856,1713891518629,1892.21,8.494e-05,2]
[323321857,1713891519267,1892.21,0.00010758,2]
[323321858,1713891554066,23900.0,0.00010356,2]
[323321859,1713891565683,167.36827021,0.00011029,2]
[323321860,1713891565730,7341.48739818,0.00011029,2]
[323321861,1713891569427,487.34598641,0.00011029,2]
[323321862,1713891574387,162.43,0.00010499,2]
[323321863,1713891574614,162.43,0.0001056,2]
[323321864,1713891574844,162.43,0.00010621,2]
[323321865,1713891575918,162.43,0.00010682,2]
[323321866,1713891576527,162.43,0.00010742,2]
[323321867,1713891576765,162.43,0.00010803,2]
[323321868,1713891577033,162.43,0.00010864,2]
[323321869,1713891577434,162.43,0.00010925,2]
[323321870,1713891577666,162.43,0.00010986,2]
[323321871,1713891579864,4322.85909605,0.00011029,2]
[323321872,1713891586084,165.12,0.00010447,2]
[323321873,1713891592380,313.7807292,0.00011029,2]
[323321874,1713891602093,207.76684945,0.00011029,2]
[323321875,1713891603307,150.0,0.00011029,2]
[323321876,1713891603575,150.0,0.00011029,2]
[323321877,1713891603758,150.0,0.00011029,2]
[323321878,1713891603959,150.0,0.00011029,2]
[323321879,1713891604184,150.0,0.00011029,2]
[323321880,1713891604372,150.0,0.00011029,2]
[323321881,1713891604579,150.0,0.00011029,2]
[323321882,1713891604784,150.0,0.00011029,2]
[323321883,1713891604991,150.0,0.00011029,2]
[323321884,1713891605200,150.0,0.00011029,2]
[323321885,1713891605386,150.0,0.00011029,2]
[323321886,1713891605556,150.0,0.00011029,2]
[323321887,1713891605835,150.0,0.00011029,2]
[323321888,1713891606047,150.0,0.00011029,2]
[323321889,1713891606239,150.0,0.00011029,2]
[323321890,1713891606443,150.0,0.00011029,2]
[323321891,1713891606656,150.0,0.00011029,2]
[323321892,1713891606712,379.03771596,0.00011029,2]
[323321893,1713891606843,150.0,0.00011029,2]
[323321894,1713891607016,150.0,0.00011029,2]
[323321895,1713891607355,150.0,0.00011029,2]
[323321896,1713891607531,150.0,0.00011029,2]
[323321897,1713891607735,150.0,0.00011029,2]
[323321898,1713891607936,284.84998968,0.00011029,2]
[323321899,1713891609351,565.4116933,0.00011029,2]
[323321900,1713891614055,3950.26216107,0.00011029,2]
[323321901,1713891614167,3413.36288726,0.00011029,2]
[323321902,1713891614401,208.68,0.00010527,2]
[323321903,1713891639016,600.0,0.00010494,2]
[323321904,1713891698113,500000.0,0.0001,2]
[323321905,1713891718454,372823.54098233,0.00011,2]
[323321906,1713891718481,127176.45901767,0.00011,2]
[323321907,1713891738272,86823.54098233,0.00011,2]
[323321908,1713891738535,913176.45901767,0.00011,2]
[323321909,1713891767316,1000000.0,0.00011,2]
[323321910,1713891771906,429.37,0.00010498,2]
[323321911,1713891777853,86394.17098233,0.00011,2]
[323321912,1713891777873,913605.82901767,0.00011,2]
[323321913,1713891791159,1000000.0,0.00011,2]
[323321914,1713891842452,162.62861374,0.00010939,2]
[323321915,1713891865837,4125.62,0.00010381,2]
[323321916,1713891916072,154.6,8.32e-05,2]
[323321917,1713891932457,250.0,0.00010381,2]
[323321918,1713891934585,200.0,0.00010396,2]
[323321920,1713891957372,3121.78119735,0.00011,2]
[323321921,1713891965180,2966.0,0.00011,2]
[323321922,1713891968918,171.09,0.00010418,2]
[323321923,1713892011873,191.91530623,0.00010945,2]
[323321924,1713892040429,1702.98,8.473e-05,2]
[323321925,1713892040863,1702.98,0.00010736,2]
[323321926,1713892061985,23900.0,0.00010458,2]
[323321927,1713892067047,150.0,0.00010457,2]
[323321928,1713892067068,150.0,0.00010457,2]
[323321929,1713892067089,150.0,0.00010457,2]
[323321930,1713892067112,150.0,0.00010457,2]
[323321931,1713892067133,150.0,0.00010457,2]
[323321932,1713892067155,150.0,0.00010457,2]
[323321933,1713892067177,150.0,0.00010457,2]
[323321934,1713892067198,150.0,0.00010457,2]
[323321935,1713892067218,150.0,0.00010457,2]
[323321936,1713892067239,33907.32458205,0.00010457,2]
[323321937,1713892075112,150.0,0.00010418,2]
[323321938,1713892075133,150.0,0.00010418,2]
[323321939,1713892075152,150.0,0.00010418,2]
[323321940,1713892075171,150.0,0.00010418,2]
[323321941,1713892075192,150.0,0.00010418,2]
[323321942,1713892075214,150.0,0.00010418,2]
[323321943,1713892075234,150.0,0.00010418,2]
[323321944,1713892075254,150.0,0.00010418,2]
[323321945,1713892075275,150.0,0.00010418,2]
[323321946,1713892075294,150.0,0.00010418,2]
[323321947,1713892075314,150.0,0.00010418,2]
[323321948,1713892075334,150.0,0.00010418,2]
[323321949,1713892075355,150.0,0.00010418,2]
[323321950,1713892075376,150.0,0.00010418,2]
[323321951,1713892075396,150.0,0.00010418,2]
[323321952,1713892075416,150.0,0.00010418,2]
[323321953,1713892075436,150.0,0.00010418,2]
[323321954,1713892075457,150.0,0.00010418,2]
[323321955,1713892075478,150.0,0.00010418,2]
[323321956,1713892075721,150.0,0.00010418,2]
[323321957,1713892075742,150.0,0.00010418,2]
[323321958,1713892075762,150.0,0.00010418,2]
[323321959,1713892075784,150.0,0.00010418,2]
[323321960,1713892075805,150.0,0.00010418,2]
[323321961,1713892075824,150.0,0.00010418,2]
[323321962,1713892075844,150.0,0.00010418,2]
[323321963,1713892075864,150.0,0.00010418,2]
[323321964,1713892075885,150.0,0.00010418,2]
[323321965,1713892075905,150.0,0.00010418,2]
[323321966,1713892075928,217.02136879,0.00010418,2]
[323321967,1713892075948,150.0,0.00010418,2]
[323321968,1713892075967,150.0,0.00010418,2]
[323321969,1713892075987,7308.47057664,0.00010418,2]
[323321970,1713892078644,545.91901904,8.334e-05,2]
[323321971,1713892079414,866.38239461,0.00010458,2]
[323321972,1713892079452,2275.337149,0.00010978,2]
[323321973,1713892085719,150.0,0.00010458,2]
[323321974,1713892085742,116.64465607,0.00010458,2]
[323321975,1713892085786,33.35534393,0.00010458,2]
[323321976,1713892085808,150.0,0.00010458,2]
[323321977,1713892085828,215.68382289,0.00010458,2]
[323321978,1713892085849,46.32601432,0.00010458,2]
[323321979,1713892088545,438.40093877,0.00010458,2]
[323321980,1713892089792,1374.34488026,0.00010458,2]
[323321981,1713892091214,365.73222347,0.00010458,2]
[323321982,1713892094150,399.27306284,0.00010458,2]
[323321983,1713892095078,217.06502401,0.00010458,2]
[323321984,1713892095100,150.0,0.00010458,2]
[323321985,1713892095122,150.0,0.00010458,2]
[323321986,1713892095142,36.69409795,0.00010458,2]
[323321987,1713892097387,867.00991803,0.00010458,2]
[323321988,1713892103295,150.0,0.00010458,2]
[323321989,1713892103316,150.0,0.00010458,2]
[323321990,1713892103338,263.30590205,0.00010458,2]
[323321991,1713892103359,786.30101361,0.00010458,2]
[323321992,1713892103774,1830.07048604,0.00010605,2]
[323321993,1713892103960,559.5549709,0.00010458,2]
[323321994,1713892107164,209.79433617,0.00010458,2]
[323321995,1713892115858,1692.10259621,0.00010458,2]
[323321996,1713892120656,288.4630602,0.00010458,2]
[323321997,1713892121777,2196.08458324,9.935e-05,2]
[323321998,1713892127906,559.5549709,0.00010458,2]
[323321999,1713892136650,1471.71240548,0.00010458,2]
[323322002,1713892139781,1830.07048604,9.935e-05,2]
[323322003,1713892140692,163.31711115,0.00010458,2]
[323322004,1713892145886,169.69229443,0.00010458,2]
[323322013,1713892154484,162.43,0.00010496,2]
[323322014,1713892154599,1471.71240548,0.00010458,2]
[323322015,1713892155777,1830.07048604,9.935e-05,2]
[323322016,1713892172602,1471.71240548,0.00010458,2]
[323322017,1713892173775,953.46672323,9.935e-05,2]
[323322018,1713892188607,784.21249875,9.935e-05,2]
[323322019,1713892191777,953.46672323,9.438e-05,2]
[323322020,1713892209819,953.46672323,9.438e-05,2]
[323322021,1713892229786,953.46672323,9.438e-05,2]
[323322037,1713892232150,-346.53616094,0.00011029,2]
[323322038,1713892232164,-337.65859628,0.00011029,2]
[323322039,1713892232174,-533.14808044,0.00011029,2]
[323322040,1713892232185,-359.39766109,0.00011029,2]
[323322041,1713892232195,-265.47853017,0.00011029,2]
[323322042,1713892232206,-871.62397374,0.0001103,2]
[323322043,1713892232217,-1273.4562424,0.00011037,2]
[323322044,1713892232227,-155.61044199,0.0001104,2]
[323322045,1713892232240,-150.0,0.00011067,2]
[323322046,1713892232250,-150.0,0.00011067,2]
[323322047,1713892232261,-1269.326162,0.00011068,2]
[323322048,1713892232275,-6230.673838,0.00011068,2]
[323322049,1713892232286,-162.62861373,0.00011068,2]
[323322050,1713892232296,-1100.43363436,0.00011068,2]
[323322051,1713892232307,-404.26804548,0.00011069,2]
[323322052,1713892232317,-414.3135268,0.00011164,2]
[323322053,1713892232328,-155.0,0.00011164,2]
[323322054,1713892232339,-500.0,0.00011164,2]
[323322055,1713892232349,-500.0,0.00011164,2]
[323322056,1713892232359,-500.0,0.00011164,2]
[323322057,1713892232370,-500.0,0.00011164,2]
[323322058,1713892232381,-500.0,0.00011164,2]
[323322059,1713892232392,-6710.00504069,0.00011165,2]
[323322060,1713892232413,-468.00651151,0.00011165,2]
[323322061,1713892232426,-306.20467746,0.00011165,2]
[323322062,1713892232439,-605.42585318,0.00011165,2]
[323322063,1713892233459,-381523.85582065,0.00011165,2]
[323322064,1713892233471,-5985.8999,0.00011165,2]
[323322065,1713892233484,-5560.26,0.00011165,2]
[323322066,1713892233500,-78253.1293222,0.00011165,2]
[323322067,1713892233512,-615.69079611,0.00011165,2]
[323322068,1713892233525,-260.79473481,0.00011165,2]
[323322069,1713892233542,-1421.18809713,0.00011165,2]
[323322070,1713892233555,-64528.71133034,0.00011165,2]
[323322071,1713892233566,-161.86317497,0.00011166,2]
[323322072,1713892233576,-234.14587656,0.00011166,2]
[323322073,1713892233587,-332.58115796,0.00011166,2]
[323322074,1713892233597,-694.17711765,0.00011166,2]
[323322075,1713892233607,-26307.81823741,0.00011166,2]
[323322076,1713892233649,-1197.58,0.00011166,2]
[323322077,1713892234288,-550.0,0.00011166,2]
[323322078,1713892234301,-2750.0,0.00011166,2]
[323322079,1713892237247,15891.2699,0.00010935,2]
[323322102,1713892237858,-871.62397374,0.00011028,2]
[323322106,1713892237868,-500.0,0.00011164,2]
[323322109,1713892237878,-114.86960286,0.00011166,2]
[323322113,1713892237890,-5214.39013985,0.00011166,2]
[323322118,1713892237901,-388.33639583,0.00011166,2]
[323322169,1713892238473,-943.31101398,0.00011166,2]
[323322172,1713892238485,-12351.7,0.00011166,2]
[323322174,1713892238497,-573.41258586,0.00011166,2]
[323322176,1713892238508,-671.95731408,0.00011166,2]
[323322178,1713892238519,-27514.19471013,0.00011166,2]
[323322180,1713892238529,-4728.17005222,0.00011166,2]
[323322182,1713892238538,-5545.18226245,0.00011166,2]
[323322184,1713892238547,-669.0129911,0.00011166,2]
[323322186,1713892238557,-182.25588482,0.00011167,2]
[323322188,1713892238566,-1393.78652472,0.00011167,2]
[323322189,1713892238575,-500.0,0.00011167,2]
[323322191,1713892238584,-500.0,0.00011167,2]
[323322193,1713892238594,-450.76,0.00011167,2]
[323322195,1713892238603,-500.0,0.00011167,2]
[323322197,1713892238612,-500.0,0.00011167,2]
[323322199,1713892238621,-500.0,0.00011167,2]
[323322201,1713892238630,-564.56,0.00011167,2]
[323322203,1713892238640,-1384.21,0.00011167,2]
[323322206,1713892238649,-1589.98,0.00011167,2]
[323322208,1713892238659,-500.0,0.00011167,2]
[323322210,1713892238668,-500.0,0.00011167,2]
[323322212,1713892238677,-500.0,0.00011167,2]
[323322214,1713892238686,-500.0,0.00011167,2]
[323322216,1713892238695,-500.0,0.00011167,2]
[323322218,1713892238704,-720.44,0.00011167,2]
[323322220,1713892238713,-545.81,0.00011167,2]
[323322222,1713892238722,-500.0,0.00011167,2]
[323322224,1713892238732,-500.0,0.00011167,2]
[323322226,1713892238747,-500.0,0.00011167,2]
[323322228,1713892238756,-631.76,0.00011167,2]
[323322230,1713892238765,-500.0,0.00011167,2]
[323322232,1713892238774,-2549.92,0.00011167,2]
[323322234,1713892238785,-500.0,0.00011167,2]
[323322236,1713892238794,-1494.54,0.00011167,2]
[323322238,1713892238803,-542.81,0.00011167,2]
[323322240,1713892238814,-500.0,0.00011167,2]
[323322242,1713892238824,-500.0,0.00011167,2]
[323322244,1713892238834,-1899.61,0.00011167,2]
[323322246,1713892238843,-813.47,0.00011167,2]
[323322248,1713892238853,-1165.15,0.00011167,2]
[323322250,1713892238863,-500.0,0.00011167,2]
[323322252,1713892238872,-584.35,0.00011167,2]
[323322254,1713892238881,-834.84,0.00011167,2]
[323322256,1713892238892,-500.0,0.00011167,2]
[323322258,1713892238901,-500.0,0.00011167,2]
[323322260,1713892238911,-500.0,0.00011167,2]